[Event "MČR mládeže v rapid šachu 2024 H10"]
[Site "Harrachov, Czech Republic"]
[Date "????.??.??"]
[Round "8.6"]
[White "Stepnicka Filip"]
[Black "Trejbal Jindrich"]
[Result "1/2-1/2"]
[TimeControl "20+5"]
[WhiteFideId "23771542"]
[BlackFideId "23743948"]
[WhiteElo "1531"]
[BlackElo "1631"]

1. e4 {[%clk 00:20:08]} {[%emt 00:00:02]} e5 {[%clk 00:20:08]} {[%emt
00:00:02]} 2. Nf3 {[%clk 00:20:07]} {[%emt 00:00:06]} Nc6 {[%clk 00:20:11]}
{[%emt 00:00:01]} 3. Bc4 {[%clk 00:20:09]} {[%emt 00:00:04]} Bc5 {[%clk
00:20:13]} {[%emt 00:00:02]} 4. c3 {[%clk 00:20:12]} {[%emt 00:00:02]} Nf6
{[%clk 00:20:14]} {[%emt 00:00:04]} 5. d4 {[%clk 00:20:14]} {[%emt 00:00:02]}
exd4 {[%clk 00:20:17]} {[%emt 00:00:03]} 6. cxd4 {[%clk 00:20:18]} {[%emt
00:00:01]} Bb4+ {[%clk 00:20:17]} {[%emt 00:00:05]} 7. Bd2 {[%clk 00:20:21]}
Bxd2+ {[%clk 00:20:06]} {[%emt 00:00:16]} 8. Nbxd2 {[%clk 00:20:25]} {[%emt
00:00:02]} O-O {[%clk 00:20:01]} {[%emt 00:00:09]} 9. O-O {[%clk 00:20:20]}
{[%emt 00:00:10]} Re8 {[%clk 00:19:17]} {[%emt 00:00:50]} 10. e5 {[%clk
00:20:01]} {[%emt 00:00:24]} d5 {[%clk 00:19:09]} {[%emt 00:00:13]} 11. exf6
{[%clk 00:19:46]} {[%emt 00:00:19]} dxc4 {[%clk 00:19:10]} {[%emt 00:00:05]} 12.
fxg7 {[%clk 00:19:46]} {[%emt 00:00:05]} Nxd4 {[%clk 00:18:27]} {[%emt
00:00:48]} 13. Nxc4 {[%clk 00:19:02]} {[%emt 00:00:49]} Nxf3+ {[%clk 00:17:27]}
{[%emt 00:01:05]} 14. Qxf3 {[%clk 00:18:58]} {[%emt 00:00:09]} Qd4 {[%clk
00:16:59]} {[%emt 00:00:33]} 15. b3 {[%clk 00:17:54]} {[%emt 00:01:08]} Bg4
{[%clk 00:14:38]} {[%emt 00:02:27]} 16. Qxb7 {[%clk 00:16:28]} {[%emt
00:01:31]} Be2 {[%clk 00:13:56]} {[%emt 00:00:47]} 17. Rfc1 {[%clk 00:14:26]}
{[%emt 00:02:08]} Bxc4 {[%clk 00:12:15]} {[%emt 00:01:44]} 18. bxc4 {[%clk
00:14:23]} {[%emt 00:00:10]} Rab8 {[%clk 00:11:10]} {[%emt 00:01:09]} 19. Qxc7
{[%clk 00:13:14]} {[%emt 00:01:15]} Rb2 {[%clk 00:10:28]} {[%emt 00:00:47]} 20.
Qg3 {[%clk 00:12:47]} {[%emt 00:00:27]} Ree2 {[%clk 00:10:21]} {[%emt
00:00:17]} 21. Rf1 {[%clk 00:11:45]} {[%emt 00:01:07]} Rxa2 {[%clk 00:07:00]}
{[%emt 00:03:27]} 22. Rad1 {[%clk 00:11:44]} {[%emt 00:00:06]} Rad2 {[%clk
00:06:49]} {[%emt 00:00:15]} 23. Qb8+ {[%clk 00:11:39]} {[%emt 00:00:10]} Kxg7
{[%clk 00:06:44]} {[%emt 00:00:10]} 24. Qg3+ {[%clk 00:11:39]} {[%emt
00:00:05]} Kh8 {[%clk 00:05:44]} {[%emt 00:01:04]} 25. Qb8+ {[%clk 00:11:35]}
{[%emt 00:00:10]} Kg7 {[%clk 00:05:39]} {[%emt 00:00:10]} 26. Qg3+ {[%clk
00:11:37]} {[%emt 00:00:03]} Kf8 {[%emt 00:00:11]} 27. Qa3+ {[%emt 00:00:06]}
Kg7 {[%emt 00:00:01]} 28. Qg3+ {[%emt 00:00:02]} Kf8 {[%emt 00:00:01]} 29. Qb8+
{[%emt 00:00:50]} 1/2-1/2



[ePGN "0.1;DGT LiveChess/2.2.6"]

[Event "MČR mládeže v rapid šachu 2024 H10"]
[Site "Harrachov, Czech Republic"]
[Date "????.??.??"]
[Round "8.7"]
[White "Hovhannisyan Narek"]
[Black "Temirbek Amirali"]
[Result "0-1"]
[TimeControl "20+5"]
[WhiteFideId "23778024"]
[BlackFideId "447019808"]
[WhiteElo "1570"]
[BlackElo "1514"]

1. e4 {[%clk 00:20:06]} {[%emt 00:00:02]} e5 {[%clk 00:20:08]} {[%emt
00:00:03]} 2. Nf3 {[%clk 00:20:09]} {[%emt 00:00:03]} Nc6 {[%clk 00:20:10]}
{[%emt 00:00:02]} 3. d4 {[%clk 00:20:13]} exd4 {[%clk 00:20:11]} {[%emt
00:00:04]} 4. Nxd4 {[%clk 00:20:17]} {[%emt 00:00:02]} Qf6 {[%clk 00:20:14]}
{[%emt 00:00:01]} 5. Nb5 {[%clk 00:19:56]} {[%emt 00:00:26]} Bc5 {[%clk
00:20:15]} {[%emt 00:00:04]} 6. Qd2 {[%clk 00:19:38]} {[%emt 00:00:18]} Bb6
{[%clk 00:20:01]} {[%emt 00:00:24]} 7. Qf4 {[%clk 00:18:23]} {[%emt 00:01:20]}
d6 {[%clk 00:19:04]} {[%emt 00:01:02]} 8. Bd3 {[%clk 00:17:46]} {[%emt
00:00:41]} a6 {[%clk 00:18:38]} {[%emt 00:00:32]} 9. N5c3 {[%clk 00:17:39]}
{[%emt 00:00:12]} Be6 {[%clk 00:18:33]} {[%emt 00:00:10]} 10. Qxf6 {[%clk
00:17:39]} {[%emt 00:00:05]} Nxf6 {[%clk 00:18:33]} {[%emt 00:00:04]} 11. Bg5
{[%clk 00:17:42]} {[%emt 00:00:01]} h6 {[%clk 00:17:15]} {[%emt 00:01:24]} 12.
Bxf6 {[%clk 00:17:22]} {[%emt 00:00:25]} gxf6 {[%clk 00:17:18]} {[%emt
00:00:02]} 13. Nd2 {[%clk 00:17:08]} {[%emt 00:00:19]} O-O-O {[%clk 00:17:20]}
{[%emt 00:00:03]} 14. f3 {[%clk 00:16:36]} {[%emt 00:00:37]} Rhg8 {[%clk
00:17:23]} {[%emt 00:00:01]} 15. g4 {[%clk 00:16:28]} {[%emt 00:00:13]} Ne5
{[%clk 00:17:00]} {[%emt 00:00:28]} 16. Be2 {[%clk 00:15:48]} {[%emt 00:00:43]}
d5 {[%clk 00:16:18]} {[%emt 00:00:49]} 17. exd5 {[%clk 00:14:11]} {[%emt
00:01:42]} Bxd5 {[%clk 00:16:21]} {[%emt 00:00:02]} 18. Nxd5 {[%clk 00:13:52]}
{[%emt 00:00:23]} Rxd5 {[%clk 00:16:24]} {[%emt 00:00:02]} 19. O-O-O {[%clk
00:12:36]} {[%emt 00:01:22]} Be3 {[%clk 00:16:28]} {[%emt 00:00:02]} 20. c4
{[%clk 00:11:25]} {[%emt 00:01:16]} Rd4 {[%clk 00:14:29]} {[%emt 00:02:04]} 21.
Kc2 {[%clk 00:10:52]} {[%emt 00:00:38]} Rgd8 {[%clk 00:14:20]} {[%emt
00:00:14]} 22. Ne4 {[%clk 00:10:02]} {[%emt 00:00:54]} Nxc4 {[%clk 00:12:58]}
{[%emt 00:01:27]} 23. Bd3 {[%clk 00:09:01]} {[%emt 00:01:06]} Bf4 {[%clk
00:11:50]} {[%emt 00:01:14]} 24. Bxc4 {[%clk 00:05:35]} {[%emt 00:03:31]} Rxc4+
{[%clk 00:11:51]} {[%emt 00:00:04]} 25. Kb3 {[%clk 00:05:37]} {[%emt 00:00:03]}
Rc6 {[%clk 00:11:43]} {[%emt 00:00:13]} 26. Rxd8+ {[%clk 00:05:15]} {[%emt
00:00:28]} Kxd8 {[%clk 00:11:41]} {[%emt 00:00:07]} 27. Rd1+ {[%clk 00:05:09]}
{[%emt 00:00:11]} Ke7 {[%clk 00:11:32]} {[%emt 00:00:14]} 28. Re1 {[%clk
00:05:00]} {[%emt 00:00:12]} Kf8 {[%clk 00:11:18]} {[%emt 00:00:20]} 29. h4
{[%clk 00:05:00]} {[%emt 00:00:05]} Be5 {[%clk 00:11:21]} {[%emt 00:00:03]} 30.
Ka3 {[%clk 00:04:27]} {[%emt 00:00:38]} Rc2 {[%clk 00:10:41]} {[%emt 00:00:44]}
31. b3 {[%clk 00:04:23]} {[%emt 00:00:10]} b5 {[%clk 00:08:55]} {[%emt
00:01:50]} 32. Rd1 {[%clk 00:03:20]} {[%emt 00:01:07]} c5 {[%clk 00:08:39]}
{[%emt 00:00:22]} 33. b4 {[%clk 00:02:55]} {[%emt 00:00:31]} c4 {[%clk
00:07:40]} {[%emt 00:01:05]} 34. Rb1 {[%clk 00:02:35]} {[%emt 00:00:24]} Re2
{[%clk 00:06:25]} {[%emt 00:01:20]} 35. f4 {[%clk 00:01:35]} {[%emt 00:01:05]}
Re3+ {[%clk 00:06:26]} {[%emt 00:00:03]} 36. Nc3 {[%clk 00:01:39]} {[%emt
00:00:01]} Bxc3 {[%clk 00:06:19]} {[%emt 00:00:12]} 37. Rb3 {[%clk 00:01:35]}
{[%emt 00:00:09]} cxb3 {[%clk 00:06:19]} {[%emt 00:00:05]} 38. axb3 {[%clk
00:01:39]} {[%emt 00:00:02]} Re1 {[%clk 00:06:19]} {[%emt 00:00:06]} 0-1



[ePGN "0.1;DGT LiveChess/2.2.6"]

[Event "MČR mládeže v rapid šachu 2024 H10"]
[Site "Harrachov, Czech Republic"]
[Date "????.??.??"]
[Round "8.8"]
[White "Sarman Damian"]
[Black "Macharacek Jakub"]
[Result "1/2-1/2"]
[TimeControl "20+5"]
[WhiteFideId "23753170"]
[BlackFideId "23766697"]
[WhiteElo "1555"]
[BlackElo "1584"]

1. d4 {[%clk 00:20:07]} d5 {[%clk 00:20:09]} {[%emt 00:00:01]} 2. c4 {[%clk
00:20:09]} {[%emt 00:00:04]} e6 {[%clk 00:20:13]} 3. Nc3 {[%clk 00:20:12]}
{[%emt 00:00:02]} Nf6 {[%clk 00:20:16]} {[%emt 00:00:02]} 4. cxd5 {[%clk
00:20:15]} {[%emt 00:00:02]} exd5 {[%clk 00:20:19]} {[%emt 00:00:01]} 5. Bf4
{[%clk 00:20:17]} {[%emt 00:00:03]} Bd6 {[%clk 00:20:11]} {[%emt 00:00:12]} 6.
Bg3 {[%clk 00:20:20]} {[%emt 00:00:03]} c6 {[%clk 00:20:10]} {[%emt 00:00:05]}
7. e3 {[%clk 00:20:21]} {[%emt 00:00:05]} Bf5 {[%clk 00:20:10]} {[%emt
00:00:05]} 8. Bd3 {[%clk 00:20:24]} {[%emt 00:00:02]} Bg6 {[%clk 00:20:01]}
{[%emt 00:00:14]} 9. Nf3 {[%clk 00:20:26]} {[%emt 00:00:03]} Na6 {[%clk
00:19:24]} {[%emt 00:00:42]} 10. h3 {[%clk 00:20:13]} {[%emt 00:00:17]} Bxg3
{[%clk 00:19:17]} {[%emt 00:00:12]} 11. fxg3 {[%clk 00:20:14]} {[%emt
00:00:05]} Nb4 {[%clk 00:18:55]} {[%emt 00:00:27]} 12. Bxg6 {[%clk 00:20:12]}
{[%emt 00:00:07]} fxg6 {[%clk 00:18:47]} {[%emt 00:00:14]} 13. O-O {[%clk
00:20:10]} {[%emt 00:00:06]} O-O {[%clk 00:18:45]} {[%emt 00:00:06]} 14. a3
{[%clk 00:20:12]} {[%emt 00:00:03]} Na6 {[%clk 00:18:46]} {[%emt 00:00:04]} 15.
Re1 {[%clk 00:20:15]} {[%emt 00:00:02]} Qd6 {[%clk 00:18:10]} {[%emt 00:00:40]}
16. Kh2 {[%clk 00:20:07]} {[%emt 00:00:13]} Rae8 {[%clk 00:17:54]} {[%emt
00:00:21]} 17. Ne5 {[%clk 00:20:10]} {[%emt 00:00:03]} Nc7 {[%clk 00:17:29]}
{[%emt 00:00:29]} 18. Qd3 {[%clk 00:20:02]} {[%emt 00:00:13]} Ne6 {[%clk
00:17:02]} {[%emt 00:00:32]} 19. Rad1 {[%clk 00:19:32]} {[%emt 00:00:36]} Ng5
{[%clk 00:16:13]} {[%emt 00:00:54]} 20. Ne2 {[%clk 00:19:02]} {[%emt 00:00:35]}
Nge4 {[%clk 00:15:43]} {[%emt 00:00:35]} 21. Rf1 {[%clk 00:18:29]} {[%emt
00:00:38]} Rd8 {[%clk 00:14:42]} {[%emt 00:01:06]} 22. Nc3 {[%clk 00:18:06]}
{[%emt 00:00:28]} Rfe8 {[%clk 00:13:47]} {[%emt 00:01:00]} 23. Nxe4 {[%emt
00:00:25]} Nxe4 {[%clk 00:13:48]} {[%emt 00:00:03]} 24. Rf3 {[%clk 00:17:04]}
{[%emt 00:00:47]} c5 {[%clk 00:12:54]} {[%emt 00:01:00]} 25. Nf7 {[%clk
00:16:51]} {[%emt 00:00:17]} Qe6 {[%clk 00:12:00]} {[%emt 00:00:58]} 26. Nxd8
{[%clk 00:16:50]} {[%emt 00:00:06]} Rxd8 {[%clk 00:12:04]} {[%emt 00:00:02]} 27.
Rf4 {[%clk 00:15:34]} {[%emt 00:01:21]} c4 {[%clk 00:11:42]} {[%emt 00:00:28]}
28. Qf1 {[%clk 00:14:06]} {[%emt 00:01:16]} Qd6 {[%clk 00:11:14]} {[%emt
00:00:43]} 29. Rxe4 {[%clk 00:13:46]} {[%emt 00:00:31]} dxe4 {[%clk 00:11:11]}
{[%emt 00:00:08]} 30. Qxc4+ {[%clk 00:13:43]} {[%emt 00:00:07]} Kh8 {[%clk
00:11:07]} {[%emt 00:00:10]} 31. Rf1 {[%clk 00:12:56]} {[%emt 00:00:52]} h5
{[%clk 00:10:28]} {[%emt 00:00:44]} 32. h4 {[%clk 00:12:35]} {[%emt 00:00:26]}
Kh7 {[%clk 00:08:55]} {[%emt 00:01:37]} 33. Rf7 {[%emt 00:00:34]} 1/2-1/2



[ePGN "0.1;DGT LiveChess/2.2.6"]

[Event "MČR mládeže v rapid šachu 2024 H10"]
[Site "Harrachov, Czech Republic"]
[Date "????.??.??"]
[Round "9.1"]
[White "Zidek Damian"]
[Black "Bucek Vit"]
[Result "1/2-1/2"]
[TimeControl "20+5"]
[WhiteFideId "23761652"]
[BlackFideId "23750812"]
[WhiteElo "1763"]
[BlackElo "1586"]

1. d4 {[%clk 00:20:06]} {[%emt 00:00:03]} Nf6 {[%clk 00:20:09]} {[%emt
00:00:03]} 2. c4 {[%clk 00:20:10]} e6 {[%clk 00:20:13]} 3. Nc3 {[%clk
00:20:14]} {[%emt 00:00:01]} d5 {[%clk 00:20:17]} 4. cxd5 {[%clk 00:20:18]}
{[%emt 00:00:01]} exd5 {[%clk 00:20:21]} 5. Bg5 {[%clk 00:20:22]} {[%emt
00:00:02]} Nbd7 {[%clk 00:20:25]} 6. e3 {[%clk 00:20:17]} {[%emt 00:00:10]} Be7
{[%clk 00:20:27]} {[%emt 00:00:03]} 7. Nf3 {[%clk 00:20:12]} {[%emt 00:00:10]}
c6 {[%clk 00:20:29]} {[%emt 00:00:03]} 8. Bd3 {[%clk 00:20:14]} {[%emt
00:00:03]} O-O {[%clk 00:20:32]} {[%emt 00:00:04]} 9. O-O {[%clk 00:20:16]} h6
{[%clk 00:20:32]} {[%emt 00:00:06]} 10. Bh4 {[%clk 00:20:20]} Re8 {[%clk
00:20:29]} {[%emt 00:00:09]} 11. Rc1 {[%clk 00:20:23]} {[%emt 00:00:02]} Ne4
{[%clk 00:20:22]} {[%emt 00:00:12]} 12. Bg3 {[%clk 00:20:02]} {[%emt 00:00:26]}
Ndf6 {[%clk 00:20:17]} {[%emt 00:00:10]} 13. Bxe4 {[%clk 00:19:36]} {[%emt
00:00:31]} dxe4 {[%clk 00:20:05]} {[%emt 00:00:17]} 14. Nd2 {[%clk 00:19:40]}
{[%emt 00:00:01]} Bf5 {[%clk 00:19:52]} {[%emt 00:00:18]} 15. Be5 {[%clk
00:19:28]} {[%emt 00:00:17]} Bd6 {[%clk 00:19:52]} {[%emt 00:00:06]} 16. Nc4
{[%clk 00:18:49]} {[%emt 00:00:44]} Bxe5 {[%clk 00:18:58]} {[%emt 00:00:59]} 17.
Nxe5 {[%clk 00:18:45]} {[%emt 00:00:09]} Nd7 {[%clk 00:18:54]} {[%emt
00:00:08]} 18. Nxd7 {[%emt 00:00:54]} Qxd7 {[%clk 00:18:55]} {[%emt 00:00:03]}
19. Qc2 {[%clk 00:17:31]} {[%emt 00:00:32]} Qe6 {[%clk 00:18:09]} {[%emt
00:00:50]} 20. a3 {[%clk 00:17:24]} {[%emt 00:00:12]} Qg6 {[%clk 00:18:02]}
{[%emt 00:00:12]} 21. Kh1 {[%clk 00:16:55]} {[%emt 00:00:34]} h5 {[%clk
00:15:52]} {[%emt 00:02:15]} 22. Ne2 {[%clk 00:16:56]} {[%emt 00:00:05]} Qh7
{[%clk 00:14:46]} {[%emt 00:01:10]} 23. Ng3 {[%clk 00:16:03]} {[%emt 00:00:58]}
g5 {[%clk 00:13:00]} {[%emt 00:01:53]} 24. Qc5 {[%clk 00:15:37]} {[%emt
00:00:30]} Bg6 {[%clk 00:12:02]} {[%emt 00:01:04]} 25. Qxg5 {[%clk 00:15:09]}
{[%emt 00:00:33]} Kh8 {[%clk 00:11:42]} {[%emt 00:00:25]} 26. Rc5 {[%clk
00:14:30]} {[%emt 00:00:44]} Re6 {[%clk 00:10:28]} {[%emt 00:01:19]} 27. Re5
{[%clk 00:13:12]} {[%emt 00:01:17]} f6 {[%clk 00:10:02]} {[%emt 00:00:36]} 28.
Qxg6 {[%clk 00:13:07]} {[%emt 00:00:10]} Qxg6 {[%clk 00:10:03]} {[%emt
00:00:04]} 29. Rxe6 {[%clk 00:13:10]} {[%emt 00:00:02]} Rg8 {[%clk 00:10:01]}
{[%emt 00:00:07]} 30. Rg1 {[%clk 00:12:46]} {[%emt 00:00:29]} h4 {[%clk
00:09:54]} {[%emt 00:00:12]} 31. Ne2 {[%clk 00:12:48]} {[%emt 00:00:03]} Qf5
{[%clk 00:08:48]} {[%emt 00:01:11]} 32. Nf4 {[%clk 00:12:02]} {[%emt 00:00:51]}
a6 {[%clk 00:06:37]} {[%emt 00:02:17]} 33. Re7 {[%clk 00:10:35]} {[%emt
00:01:32]} Qb5 {[%clk 00:06:23]} {[%emt 00:00:17]} 34. b4 {[%clk 00:09:21]}
{[%emt 00:01:21]} Qa4 {[%clk 00:05:55]} {[%emt 00:00:33]} 35. Nh5 {[%clk
00:08:12]} {[%emt 00:01:12]} Rg6 {[%clk 00:04:23]} {[%emt 00:01:39]} 36. Re8+
{[%clk 00:07:43]} {[%emt 00:00:34]} Kh7 {[%clk 00:04:24]} {[%emt 00:00:04]} 37.
Re7+ {[%clk 00:07:39]} {[%emt 00:00:09]} Kh6 {[%clk 00:03:59]} {[%emt
00:00:30]} 38. g4 {[%clk 00:05:53]} {[%emt 00:01:51]} hxg3 {[%clk 00:03:53]}
{[%emt 00:00:11]} 39. Nxg3 {[%clk 00:05:55]} {[%emt 00:00:02]} Rg5 {[%clk
00:02:56]} {[%emt 00:01:03]} 40. h4 {[%clk 00:05:52]} {[%emt 00:00:08]} Rxg3
{[%clk 00:02:18]} {[%emt 00:00:43]} 41. Rxg3 {[%clk 00:05:38]} {[%emt
00:00:19]} Qxa3 {[%clk 00:02:14]} {[%emt 00:00:10]} 42. Re8 {[%clk 00:05:17]}
{[%emt 00:00:25]} Kh7 {[%clk 00:02:00]} {[%emt 00:00:19]} 43. Re7+ {[%clk
00:04:48]} {[%emt 00:00:35]} Kh6 {[%clk 00:01:45]} {[%emt 00:00:20]} 44. Rf7
{[%clk 00:04:22]} {[%emt 00:00:30]} Qxb4 {[%clk 00:01:31]} {[%emt 00:00:18]} 45.
Rxf6+ {[%clk 00:04:23]} {[%emt 00:00:04]} 1/2-1/2



[ePGN "0.1;DGT LiveChess/2.2.6"]

[Event "MČR mládeže v rapid šachu 2024 H10"]
[Site "Harrachov, Czech Republic"]
[Date "????.??.??"]
[Round "9.2"]
[White "Bukovskij Dmitri"]
[Black "Lutskiy Mikhail"]
[Result "0-1"]
[TimeControl "20+5"]
[WhiteFideId "23749660"]
[BlackFideId "23744308"]
[WhiteElo "1700"]
[BlackElo "1729"]

1. d4 {[%clk 00:20:08]} {[%emt 00:00:01]} Nf6 {[%clk 00:20:09]} {[%emt
00:00:02]} 2. c4 {[%clk 00:20:12]} {[%emt 00:00:03]} e6 {[%clk 00:20:13]} 3.
Nc3 {[%clk 00:20:17]} d5 {[%clk 00:20:17]} 4. cxd5 {[%clk 00:20:20]} {[%emt
00:00:01]} exd5 {[%clk 00:20:21]} 5. Bg5 {[%clk 00:20:25]} Be7 {[%clk
00:20:25]} {[%emt 00:00:02]} 6. e3 {[%clk 00:20:29]} {[%emt 00:00:02]} O-O
{[%clk 00:20:27]} {[%emt 00:00:02]} 7. Qc2 {[%clk 00:20:33]} {[%emt 00:00:01]}
h6 {[%clk 00:20:25]} {[%emt 00:00:07]} 8. Bf4 {[%clk 00:20:37]} a6 {[%clk
00:20:26]} {[%emt 00:00:05]} 9. Bd3 {[%clk 00:20:37]} {[%emt 00:00:05]} Be6
{[%clk 00:20:27]} {[%emt 00:00:04]} 10. Nf3 {[%clk 00:20:28]} {[%emt 00:00:16]}
Nbd7 {[%clk 00:20:30]} 11. O-O {[%clk 00:20:28]} {[%emt 00:00:05]} Rc8 {[%clk
00:20:31]} {[%emt 00:00:05]} 12. Qb3 {[%clk 00:20:21]} {[%emt 00:00:12]} Nb6
{[%clk 00:20:08]} {[%emt 00:00:27]} 13. a4 {[%clk 00:20:14]} {[%emt 00:00:13]}
Rb8 {[%clk 00:19:50]} {[%emt 00:00:22]} 14. a5 {[%clk 00:20:07]} {[%emt
00:00:12]} Nbd7 {[%clk 00:19:53]} {[%emt 00:00:01]} 15. Rfc1 {[%clk 00:19:40]}
{[%emt 00:00:32]} Nh5 {[%clk 00:19:42]} {[%emt 00:00:15]} 16. Nxd5 {[%clk
00:16:41]} {[%emt 00:03:05]} Nxf4 {[%clk 00:19:26]} {[%emt 00:00:21]} 17. exf4
{[%clk 00:16:45]} {[%emt 00:00:02]} Nf6 {[%clk 00:19:25]} {[%emt 00:00:06]} 18.
Nxf6+ {[%clk 00:16:45]} {[%emt 00:00:05]} Bxf6 {[%clk 00:19:22]} {[%emt
00:00:07]} 19. Qc3 {[%clk 00:16:48]} {[%emt 00:00:02]} c6 {[%clk 00:19:09]}
{[%emt 00:00:19]} 20. Ne5 {[%clk 00:16:25]} {[%emt 00:00:29]} Bd5 {[%clk
00:18:22]} {[%emt 00:00:51]} 21. Bc4 {[%clk 00:15:34]} {[%emt 00:00:55]} Re8
{[%clk 00:18:15]} {[%emt 00:00:13]} 22. Bxd5 {[%clk 00:14:49]} {[%emt
00:00:50]} Qxd5 {[%clk 00:18:00]} {[%emt 00:00:19]} 23. Qc5 {[%clk 00:14:51]}
{[%emt 00:00:03]} Qe4 {[%clk 00:16:46]} {[%emt 00:01:19]} 24. g3 {[%clk
00:12:00]} {[%emt 00:02:55]} Rbd8 {[%clk 00:16:26]} {[%emt 00:00:24]} 25. Rd1
{[%clk 00:10:59]} {[%emt 00:01:07]} Rd5 {[%clk 00:15:59]} {[%emt 00:00:31]} 26.
Qc3 {[%clk 00:10:34]} {[%emt 00:00:31]} Red8 {[%clk 00:15:31]} {[%emt
00:00:30]} 27. f3 {[%clk 00:10:33]} {[%emt 00:00:09]} Qf5 {[%clk 00:15:14]}
{[%emt 00:00:20]} 28. Kg2 {[%clk 00:09:54]} {[%emt 00:00:47]} c5 {[%clk
00:14:43]} {[%emt 00:00:35]} 29. Ra4 {[%clk 00:07:14]} {[%emt 00:02:52]} Bxe5
{[%clk 00:13:42]} {[%emt 00:01:09]} 30. fxe5 {[%clk 00:06:59]} {[%emt
00:00:20]} Qd7 {[%clk 00:13:35]} {[%emt 00:00:11]} 31. Rc4 {[%clk 00:05:52]}
{[%emt 00:01:13]} cxd4 {[%emt 00:00:11]} 32. Qd2 {[%clk 00:04:26]} {[%emt
00:01:29]} Rxe5 {[%clk 00:12:20]} {[%emt 00:01:16]} 33. Qf4 {[%clk 00:03:24]}
{[%emt 00:01:06]} Re2+ {[%clk 00:10:18]} {[%emt 00:02:08]} 34. Kf1 {[%clk
00:03:00]} {[%emt 00:00:29]} d3 {[%clk 00:10:21]} {[%emt 00:00:03]} 35. Rc7
{[%clk 00:02:53]} {[%emt 00:00:12]} Qh3+ {[%clk 00:10:24]} {[%emt 00:00:02]}
0-1



[ePGN "0.1;DGT LiveChess/2.2.6"]

[Event "MČR mládeže v rapid šachu 2024 H10"]
[Site "Harrachov, Czech Republic"]
[Date "????.??.??"]
[Round "9.3"]
[White "Vo Daniel"]
[Black "Burel Jan"]
[Result "0-1"]
[TimeControl "20+5"]
[WhiteFideId "23761229"]
[BlackFideId "23754907"]
[WhiteElo "1679"]
[BlackElo "1566"]

1. e4 {[%clk 00:20:09]} e5 {[%clk 00:20:09]} {[%emt 00:00:03]} 2. Nf3 {[%clk
00:20:12]} Nf6 {[%clk 00:20:11]} {[%emt 00:00:02]} 3. Nxe5 {[%clk 00:20:13]}
{[%emt 00:00:05]} d6 {[%clk 00:20:14]} {[%emt 00:00:02]} 4. Nf3 {[%clk
00:20:16]} {[%emt 00:00:01]} Nxe4 {[%clk 00:20:16]} {[%emt 00:00:03]} 5. d4
{[%clk 00:20:16]} {[%emt 00:00:06]} Bg4 {[%clk 00:20:06]} {[%emt 00:00:13]} 6.
Bd3 {[%clk 00:19:59]} {[%emt 00:00:23]} d5 {[%clk 00:19:49]} {[%emt 00:00:22]}
7. c4 {[%clk 00:19:54]} {[%emt 00:00:09]} Bb4+ {[%clk 00:19:35]} {[%emt
00:00:19]} 8. Nbd2 {[%clk 00:19:46]} {[%emt 00:00:13]} Nxd2 {[%clk 00:19:36]}
{[%emt 00:00:04]} 9. Bxd2 {[%clk 00:19:48]} {[%emt 00:00:03]} Bxd2+ {[%clk
00:19:37]} {[%emt 00:00:04]} 10. Qxd2 {[%clk 00:19:51]} {[%emt 00:00:02]} O-O
{[%clk 00:19:21]} {[%emt 00:00:20]} 11. Ne5 {[%clk 00:19:38]} {[%emt 00:00:19]}
Be6 {[%clk 00:18:59]} {[%emt 00:00:26]} 12. cxd5 {[%clk 00:19:23]} {[%emt
00:00:21]} Bxd5 {[%clk 00:18:51]} {[%emt 00:00:13]} 13. O-O {[%clk 00:19:22]}
{[%emt 00:00:06]} f6 {[%clk 00:18:50]} {[%emt 00:00:05]} 14. Nc4 {[%clk
00:18:28]} {[%emt 00:00:59]} Nc6 {[%clk 00:18:48]} {[%emt 00:00:08]} 15. Ne3
{[%clk 00:17:40]} {[%emt 00:00:53]} Re8 {[%clk 00:18:13]} {[%emt 00:00:40]} 16.
Rac1 {[%clk 00:17:25]} {[%emt 00:00:21]} Bxa2 {[%clk 00:17:45]} {[%emt
00:00:33]} 17. Nf5 {[%clk 00:16:26]} {[%emt 00:01:04]} Ne7 {[%clk 00:16:52]}
{[%emt 00:00:58]} 18. b4 {[%clk 00:15:37]} {[%emt 00:00:55]} Be6 {[%clk
00:16:46]} {[%emt 00:00:11]} 19. Ne3 {[%clk 00:15:35]} {[%emt 00:00:07]} Nd5
{[%clk 00:16:07]} {[%emt 00:00:44]} 20. Nc2 {[%clk 00:15:02]} {[%emt 00:00:38]}
Qd7 {[%clk 00:15:28]} {[%emt 00:00:43]} 21. Ne3 {[%clk 00:13:47]} {[%emt
00:01:20]} a6 {[%clk 00:14:00]} {[%emt 00:01:33]} 22. Qc2 {[%clk 00:13:38]}
{[%emt 00:00:13]} g6 {[%clk 00:12:35]} {[%emt 00:01:31]} 23. Nxd5 {[%clk
00:12:46]} {[%emt 00:00:58]} Bxd5 {[%clk 00:12:37]} {[%emt 00:00:03]} 24. Qd2
{[%clk 00:12:23]} {[%emt 00:00:25]} Qg4 {[%clk 00:11:56]} {[%emt 00:00:47]} 25.
Bc4 {[%clk 00:12:10]} {[%emt 00:00:20]} Qxg2# {[%clk 00:11:57]} {[%emt
00:00:04]} 0-1



[ePGN "0.1;DGT LiveChess/2.2.6"]